Workbook

Sheet 1дн
A1: Школа | C1: ГБОУ "Маскаринская школа- интернат для детей с ограниченными возможностями здоровья" | F1: Утвердил: | G1: должность | H1: директор
A2: Типовое примерное меню приготавливаемых блюд | G2: фамилия | H2: Сабитов Ш. Н.
A3: Возрастная категория | E3: 7-11 лет | G3: дата | H3: 27 | I3: 5 | J3: 25
H4: день | I4: месяц | J4: год
A5: Неделя | B5: День недели | C5: Прием пищи | D5: Раздел меню | E5: Блюда | F5: Вес блюда, г | G5: Белки | H5: Жиры | I5: Углеводы | J5: Калорийность | K5: № рецептуры | L5: Цена
A6: 2 | B6: 2 | C6: Завтрак | D6: гор.блюдо | E6: Каша геркулес молочный | F6: 200/10 | G6: 9.7 | H6: 8.3 | I6: 36.8 | J6: 212 | K6: 23 | L6: 11.89
D7: масло | E7: Масло сливочное | F7: 10 | G7: 0.4 | H7: 62.5 | I7: 0.8 | J7: 105 | K7: 50 | L7: 6.42
D8: гор.напиток | E8: Кофейный напиток из цикория | F8: 200 | G8: 4.32 | H8: 4.6 | I8: 9.6 | J8: 135 | K8: 54 | L8: 9.3
D9: хлеб | E9: Хлеб пшеничный | F9: 120 | G9: 3.1 | H9: 0.2 | I9: 20.1 | J9: 284.1 | K9: 37 | L9: 8.6
D10: фрукты | E10: Апельсин | F10: 100 | G10: 1.4 | H10: 0.3 | I10: 8.1 | J10: 36 | K10: 60 | L10: 15.14
D13: итого | F13: 640 | G13: 18.92 | H13: 75.9 | I13: 75.4 | J13: 772.1 | L13: =SUM(L6:L12) -> 51.35
A14: 2 | B14: 2 | C14: Завтрак 2 | D14: фрукты | E14: Яблоки св. | F14: 100 | G14: 0.6 | H14: 0.6 | I14: 14.3 | J14: 68.6 | K14: 60 | L14: 10.15
D15: напиток | E15: Компот из с/ф | F15: 200 | G15: 4 | H15: 0.06 | I15: 35.2 | J15: 110 | K15: 53 | L15: 15.3
E16: Яйцо вареное | F16: 1 | G16: 5.1 | H16: 4.6 | I16: 0.3 | J16: 63 | K16: 49 | L16: 9.9
D17: кондит.изд. | E17: Вафли | F17: 30 | G17: 1 | H17: 8.8 | I17: 18.8 | J17: 154.2 | K17: 30 | L17: 4.5
D18: хлеб | E18: Хлеб пшеничный | F18: 120 | G18: 3.1 | H18: 0.2 | I18: 20.1 | J18: 378.8 | K18: 37 | L18: 8.6
D19: итого | F19: 451 | G19: 13.8 | H19: 14.26 | I19: 88.7 | J19: 774.6 | L19: =SUM(L14:L18) -> 48.45
A20: 2 | B20: 2 | C20: Обед | D20: закуска | E20: Салат морковный припущен. | F20: 100 | G20: 1.8 | H20: 7.5 | I20: 14 | J20: 97.6 | K20: 35 | L20: 5.74
D21: 1блюдо | E21: Борщ к/м со сметаной | F21: 250/15 | G21: 8.4 | H21: 10.3 | I21: 13.7 | J21: 105.2 | K21: 2 | L21: 29.54
D22: 2 блюдо | E22: Плов из говядины | F22: 200 | G22: 18.8 | H22: 15.6 | I22: 18.6 | J22: 258 | K22: 11 | L22: 21.61
D23: гарнир
D24: напиток | E24: Сок | F24: 200 | G24: 0.8 | H24: 0 | I24: 23 | J24: 94 | K24: 57 | L24: 13
D25: хлеб бел.
D26: хлеб | E26: Хлеб"Дарницкий" | F26: 80 | G26: 2.6 | H26: 0.4 | I26: 17 | J26: 163.2 | K26: 36 | L26: 5.19
D29: итого | F29: 580 | G29: 32.4 | H29: 33.8 | I29: 86.3 | J29: 718 | L29: =SUM(L20:L28) -> 75.08
A30: 2 | B30: 2 | C30: Полдник | D30: булочное
D31: напиток
D34: итого | F34: 0 | G34: 0 | H34: 0 | I34: 0 | J34: 0 | L34: 0
A35: 2 | B35: 2 | C35: Ужин | D35: гор.блюдо | E35: Овощное рагу с мясом говяд. | F35: 200/5 | G35: 3.46 | H35: 6.26 | I35: 9.9 | J35: 102.5 | K35: 10 | L35: 25.51
D36: творог | E36: Творог со сметаной | F36: 200/10 | G36: 18 | H36: 9 | I36: 3 | J36: 164.3 | K36: 40 | L36: 62.28
D37: напиток | E37: Чай сладкий | F37: 200 | G37: 0.1 | H37: 0 | I37: 9.9 | J37: 39.9 | K37: 51 | L37: 1.45
D38: хлеб | E38: Хлеб" Дарницкий" | F38: 80 | G38: 2.6 | H38: 0.4 | I38: 17 | J38: 163.2 | K38: 36 | L38: 5.19
D39: масло | E39: Масло сливочное | F39: 10 | G39: 0.4 | H39: 62.5 | I39: 0.8 | J39: 105 | K39: 50 | L39: 6.42
D41: итого | F41: 290 | G41: 24.56 | H41: 78.16 | I41: 40.6 | J41: 574.9 | L41: =SUM(L35:L40) -> 100.85
A42: 2 | B42: 2 | C42: Ужин 2 | D42: кисломол. | E42: Ряженка | F42: 200 | G42: 12 | H42: 2 | I42: 8.4 | J42: 134 | K42: 58 | L42: 24.08
D43: фрукты | E43: Яблоки св. | F43: 100 | G43: 0.6 | H43: 0.6 | I43: 14.3 | J43: 68.6 | K43: 60 | L43: 10.15
D44: напиток
D48: итого | F48: 300 | G48: 12.6 | H48: 2.6 | I48: 22.7 | J48: 202.8 | L48: 34.32
C49: итого за день | F49: =F41+F29+F19+F13+F13 -> 2601 | G49: =G41+G48+G29+G19+G13 -> 102.28 | H49: =H48+H41+H29+H19+H13 -> 204.72 | I49: =I48+I41+I29+I19+I13 -> 313.7 | J49: =J48+J41+J29+J19+J13 -> 3042.4 | L49: 310.05

Sheet 2дн
A1: Школа | C1: ГБОУ "Маскаринская школа- интернат для детей с ограниченными возможностями здоровья" | F1: Утвердил: | G1: должность | H1: директор
A2: Типовое примерное меню приготавливаемых блюд | G2: фамилия | H2: Сабитов Ш. Н.
A3: Возрастная категория | E3: 7-11 лет | G3: дата | J3: 2023
H4: день | I4: месяц | J4: год
A5: Неделя | B5: День недели | C5: Прием пищи | D5: Раздел меню | E5: Блюда | F5: Вес блюда, г | G5: Белки | H5: Жиры | I5: Углеводы | J5: Калорийность | K5: № рецептуры | L5: Цена
A6: 2 | B6: 2 | C6: Завтрак | D6: гор.блюдо | E6: Каша геркулес молочный | F6: 200/10 | G6: 9.7 | H6: 8.3 | I6: 36.8 | J6: 212 | K6: 23
D7: масло | E7: Масло сливочное | F7: 10 | G7: 0.4 | H7: 62.5 | I7: 0.8 | J7: 70 | K7: 50
D8: гор.напиток | E8: Кофейный напиток из цикория | F8: 200 | G8: 4.32 | H8: 4.6 | I8: 9.6 | J8: 129.94 | K8: 54
D9: хлеб | E9: Хлеб пшеничный | F9: 120 | G9: 3.1 | H9: 0.2 | I9: 20.1 | J9: 94.7 | K9: 37
D10: фрукты | E10: Апельсин | F10: 100 | G10: 1.4 | H10: 0.3 | I10: 8.1 | J10: 34.2
D13: итого | F13: =SUM(F6:F12) -> 430 | G13: =SUM(G6:G12) -> 18.92 | H13: =SUM(H6:H12) -> 75.9 | I13: =SUM(I6:I12) -> 75.4 | J13: =SUM(J6:J12) -> 540.84 | L13: =SUM(L6:L12) -> 0
A14: =A6 -> 2 | B14: =B6 -> 2 | C14: Завтрак 2 | D14: фрукты | E14: Банан | F14: 100 | G14: 1.4 | H14: 0.3 | I14: 12.1 | J14: 64.2 | K14: 62
D15: напиток | E15: Компот из с/ф | F15: 200 | G15: 4 | H15: 0.06 | I15: 35.2 | J15: 110 | K15: 53
E16: Яйцо вареное | F16: 1 | G16: 5.1 | H16: 4.6 | I16: 0.3 | J16: 63 | K16: 49
D17: =#REF! ->  | E17: =#REF! ->  | F17: =#REF! ->  | G17: =#REF! ->  | H17: =#REF! ->  | I17: =#REF! ->  | J17: =#REF! ->  | K17: =#REF! -> 
D18: хлеб | E18: Хлеб пшеничный | F18: 120 | G18: 3.1 | H18: 0.2 | I18: 20.1 | J18: 94.7 | K18: 37
D19: итого | F19: =SUM(F14:F18) ->  | G19: =SUM(G14:G18) ->  | H19: =SUM(H14:H18) ->  | I19: =SUM(I14:I18) ->  | J19: =SUM(J14:J18) ->  | L19: =SUM(L14:L24) -> 
A20: =A6 -> 2 | B20: =B6 -> 2 | C20: Обед | D20: закуска | E20: Салат морковный | F20: 100 | G20: 1.16 | H20: 8.3 | I20: 14.6 | J20: 98.8 | K20: 35
D21: 1блюдо | E21: Борщ к/м со сметаной | F21: 250/15 | G21: 8.4 | H21: 10.3 | I21: 13.7 | J21: 105.2 | K21: 2
D22: 2 блюдо | E22: Плов из говядины | F22: 200 | G22: 18.8 | H22: 15.6 | I22: 18.6 | J22: 215.7 | K22: 11
D23: гарнир
D24: напиток | E24: Сок | F24: 200 | G24: 0.8 | H24: 0 | I24: 23 | J24: 94 | K24: 57
D25: хлеб бел.
D26: хлеб | E26: Хлеб"Дарницкий" | F26: 80 | G26: 2.6 | H26: 0.4 | I26: 17 | J26: 81.6 | K26: 36
D29: итого | F29: =SUM(F20:F28) -> 580 | G29: =SUM(G20:G28) -> 31.76 | H29: =SUM(H20:H28) -> 34.6 | I29: =SUM(I20:I28) -> 86.9 | J29: =SUM(J20:J28) -> 595.3 | L29: =SUM(L26:L34) -> 
A30: =A6 -> 2 | B30: =B6 -> 2 | C30: Полдник | D30: булочное
D31: напиток
D34: итого | F34: =SUM(F30:F33) -> 0 | G34: =SUM(G30:G33) -> 0 | H34: =SUM(H30:H33) -> 0 | I34: =SUM(I30:I33) -> 0 | J34: =SUM(J30:J33) -> 0 | L34: =SUM(L27:L33) -> 
A35: =A6 -> 2 | B35: =B6 -> 2 | C35: Ужин | D35: гор.блюдо | E35: Овощное рагу с мясом говяд. | F35: 200/5 | G35: 3.46 | H35: 6.26 | I35: 9.98 | J35: 102.5 | K35: 10
D36: творог | E36: Творог со сметаной | F36: 200/10 | G36: 18 | H36: 9 | I36: 3 | J36: 164.3 | K36: 40
D37: напиток | E37: Чай сладкий | F37: 200 | G37: 0.1 | H37: 0 | I37: 9.9 | J37: 39.9 | K37: 51
D38: хлеб | E38: Хлеб"Дарницкий" | F38: 80 | G38: 2.6 | H38: 0.4 | I38: 17 | J38: 81.6 | K38: 36
D39: масло | E39: Масло сливочное | F39: 10 | G39: 0.4 | H39: 62.5 | I39: 0.8 | J39: 70 | K39: 50
D41: итого | F41: =SUM(F35:F40) -> 290 | G41: =SUM(G35:G40) -> 24.56 | H41: =SUM(H35:H40) -> 78.16 | I41: =SUM(I35:I40) -> 40.68 | J41: =SUM(J35:J40) -> 458.3 | L41: =SUM(L35:L43) -> 
A42: =A6 -> 2 | B42: =B6 -> 2 | C42: Ужин 2 | D42: кисломол. | E42: Ряженка | F42: 200 | G42: 12 | H42: 2 | I42: 8.4 | J42: 80 | K42: 58
D43: фрукты | E43: Яблоки св. | F43: 100 | G43: 0.6 | H43: 0.6 | I43: 14.3 | J43: 68.6 | K43: 60
D44: напиток
D48: итого | F48: =SUM(F42:F47) -> 300 | G48: =SUM(G42:G47) -> 12.6 | H48: =SUM(H42:H47) -> 2.6 | I48: =SUM(I42:I47) -> 22.7 | J48: =SUM(J42:J47) -> 148.6 | L48: =SUM(L42:L49) -> 0
A49: =A6 -> 2 | B49: =B6 -> 2 | C49: Итого за день: | F49: =F13+F19+F29+F34+F41+F48 ->  | G49: =G13+G19+G29+G34+G41+G48 ->  | H49: =H13+H19+H29+H34+H41+H48 ->  | I49: =I13+I19+I29+I34+I41+I48 ->  | J49: =J13+J19+J29+J34+J41+J48 ->  | L49: =L13+L19+L29+L34+L41+L48 -> 

Sheet 3дн
A1: Школа | C1: ГБОУ "Маскаринская школа- интернат для детей с ограниченными возможностями здоровья" | F1: Утвердил: | G1: должность | H1: директор
A2: Типовое примерное меню приготавливаемых блюд | G2: фамилия | H2: Сабитов Ш. Н.
A3: Возрастная категория | E3: 7-11 лет | G3: дата | J3: 2023
H4: день | I4: месяц | J4: год
A5: Неделя | B5: День недели | C5: Прием пищи | D5: Раздел меню | E5: Блюда | F5: Вес блюда, г | G5: Белки | H5: Жиры | I5: Углеводы | J5: Калорийность | K5: № рецептуры | L5: Цена
A6: 2 | B6: 3 | C6: Завтрак | D6: гор.блюдо | E6: Омлет | F6: 200 | G6: 16.6 | H6: 18.24 | I6: 2.88 | J6: 200 | K6: 19
D7: масло | E7: Масло сливочное | F7: 15 | G7: 0.4 | H7: 62.5 | I7: 0.8 | J7: 70 | K7: 50
D8: гор.напиток | E8: Чай сладкий | F8: 200 | G8: 0.1 | H8: 0 | I8: 9.9 | J8: 39.9 | K8: 51
D9: хлеб | E9: Хлеб пшеничный | F9: 120 | G9: 3.1 | H9: 0.2 | I9: 20.1 | J9: 94.7 | K9: 37
D10: фрукты | E10: Апельсин | F10: 100 | G10: 1.4 | H10: 0.3 | I10: 8.1 | J10: 34.2 | K10: 61
D11: сыр | E11: Сыр | F11: 24 | G11: 4.3 | H11: 5.4 | I11: 0 | J11: 67.4 | K11: 48
D13: итого | F13: =SUM(F6:F12) -> 659 | G13: =SUM(G6:G12) -> 25.9 | H13: =SUM(H6:H12) -> 86.64 | I13: =SUM(I6:I12) -> 41.78 | J13: =SUM(J6:J12) -> 506.2 | L13: =SUM(L6:L12) -> 0
A14: =A6 -> 2 | B14: =B6 -> 3 | C14: Завтрак 2 | D14: фрукты | E14: Банан | F14: 100 | G14: 1.4 | H14: 0.3 | I14: 12.1 | J14: 64.2 | K14: 62
D15: напиток | E15: Сок | F15: 200 | G15: 0.8 | H15: 0 | I15: 23 | J15: 94 | K15: 57
D16: выпечка | E16: Ватрушка с картошкой | F16: 80 | G16: 5.4 | H16: 5.8 | I16: 32.4 | J16: 95 | K16: 38
D17: хлеб | E17: Хлеб пшеничный | F17: 160 | G17: 3.1 | H17: 0.2 | I17: 20.1 | J17: 94.7 | K17: 37
D18: итого | F18: =SUM(F14:F17) -> 540 | G18: =SUM(G14:G17) -> 10.7 | H18: =SUM(H14:H17) -> 6.3 | I18: =SUM(I14:I17) -> 87.6 | J18: =SUM(J14:J17) -> 347.9 | L18: =SUM(L14:L23) -> 
A19: =A6 -> 2 | B19: =B6 -> 3 | C19: Обед | D19: закуска | E19: Салат из вареной свеклы | F19: 100 | G19: 1.8 | H19: 10 | I19: 10 | J19: 64.2 | K19: 33
D20: 1 блюдо | E20: Рассольник к/м с перловкой со сметаной | F20: 250/10 | G20: 4.65 | H20: 10.01 | I20: 10.08 | J20: 132.3 | K20: 4
D21: 2 блюдо | E21: Макароны отварные | F21: 200/10 | G21: 7.6 | H21: 9.2 | I21: 48.8 | J21: 150.7 | K21: 18
D22: гарнир | E22: Рыбные тефтели | F22: 75/75 | G22: 12.7 | H22: 5.2 | I22: 4.4 | J22: 95.1 | K22: 77
D23: напиток | E23: Компот из с/ф | F23: 200 | G23: 4 | H23: 0.06 | I23: 35.2 | J23: 110 | K23: 53
D24: хлеб бел.
D25: хлеб | E25: Хлеб"Дарницкий" | F25: 80 | G25: 2.6 | H25: 0.4 | I25: 17 | J25: 81.6 | K25: 36
D28: итого | F28: =SUM(F19:F27) -> 380 | G28: =SUM(G19:G27) -> 33.35 | H28: =SUM(H19:H27) -> 34.87 | I28: =SUM(I19:I27) -> 125.48 | J28: =SUM(J19:J27) -> 633.9 | L28: =SUM(L25:L33) -> 
A29: =A6 -> 2 | B29: =B6 -> 3 | C29: Полдник | D29: булочное
D30: напиток
D33: итого | F33: =SUM(F29:F32) -> 0 | G33: =SUM(G29:G32) -> 0 | H33: =SUM(H29:H32) -> 0 | I33: =SUM(I29:I32) -> 0 | J33: =SUM(J29:J32) -> 0 | L33: =SUM(L26:L32) -> 
A34: =A6 -> 2 | B34: =B6 -> 3 | C34: Ужин | D34: гор.блюдо | E34: Гороховое пюре с фаршем говядины | F34: 200 | G34: 17.7 | H34: 14.2 | I34: 27.4 | J34: 283.1 | K34: 71
D35: гарнир
D36: напиток | E36: Чай с молоком | F36: 200 | G36: 1.64 | H36: 1.64 | I36: 2.38 | J36: 30 | K36: 52
D37: хлеб | E37: Хлеб"Дарницкий" | F37: 80 | G37: 2.6 | H37: 0.4 | I37: 17 | J37: 81.6 | K37: 36
D38: масло | E38: Масло сливочное | F38: 10 | G38: 0.4 | H38: 62.5 | I38: 0.8 | J38: 70 | K38: 50
D40: итого | F40: =SUM(F34:F39) -> 490 | G40: =SUM(G34:G39) -> 22.34 | H40: =SUM(H34:H39) -> 78.74 | I40: =SUM(I34:I39) -> 47.58 | J40: =SUM(J34:J39) -> 464.7 | L40: =SUM(L34:L42) -> 
A41: =A6 -> 2 | B41: =B6 -> 3 | C41: Ужин 2 | D41: кисломол. | E41: Ряженка | F41: 200 | G41: 12 | H41: 2 | I41: 8.4 | J41: 80 | K41: 58
D42: фрукты | E42: Яблоки св. | F42: 100 | G42: 0.6 | H42: 0.6 | I42: 14.3 | J42: 68.6 | K42: 60
D43: напиток
D47: итого | F47: =SUM(F41:F46) -> 300 | G47: =SUM(G41:G46) -> 12.6 | H47: =SUM(H41:H46) -> 2.6 | I47: =SUM(I41:I46) -> 22.7 | J47: =SUM(J41:J46) -> 148.6 | L47: =SUM(L41:L48) -> 0
A48: =A6 -> 2 | B48: =B6 -> 3 | C48: Итого за день: | F48: =F13+F18+F28+F33+F40+F47 -> 2369 | G48: =G13+G18+G28+G33+G40+G47 -> 104.89 | H48: =H13+H18+H28+H33+H40+H47 -> 209.15 | I48: =I13+I18+I28+I33+I40+I47 -> 325.14 | J48: =J13+J18+J28+J33+J40+J47 -> 2101.3 | L48: =L13+L18+L28+L33+L40+L47 -> 

Sheet 4дн
A1: Школа | C1: ГБОУ "Маскаринская школа- интернат для детей с ограниченными возможностями здоровья" | F1: Утвердил: | G1: должность | H1: директор
A2: Типовое примерное меню приготавливаемых блюд | G2: фамилия | H2: Сабитов Ш. Н.
A3: Возрастная категория | E3: 7-11 лет | G3: дата | J3: 2023
H4: день | I4: месяц | J4: год
A5: Неделя | B5: День недели | C5: Прием пищи | D5: Раздел меню | E5: Блюда | F5: Вес блюда, г | G5: Белки | H5: Жиры | I5: Углеводы | J5: Калорийность | K5: № рецептуры | L5: Цена
A6: 2 | B6: 4 | C6: Завтрак | D6: гор.блюдо | E6: Каша яичневая молочная | F6: 200/15 | G6: 7.5 | H6: 5.9 | I6: 42.5 | J6: 297.1 | K6: 24
D7: масло | E7: Масло сливочное | F7: 10 | G7: 0.4 | H7: 62.5 | I7: 0.8 | J7: 70 | K7: 50
D8: гор.напиток | E8: Чай с молоком | F8: 200 | G8: 1.64 | H8: 1.64 | I8: 2.38 | J8: 30 | K8: 52
D9: хлеб | E9: Хлеб пшеничный | F9: 120 | G9: 3.1 | H9: 0.2 | I9: 20.1 | J9: 94.7 | K9: 37
D10: фрукты | E10: Апельсин | F10: 100 | G10: 1.4 | H10: 0.3 | I10: 8.1 | J10: 34.2 | K10: 61
D13: итого | F13: =SUM(F6:F12) -> 430 | G13: =SUM(G6:G12) -> 14.04 | H13: =SUM(H6:H12) -> 70.54 | I13: =SUM(I6:I12) -> 73.88 | J13: =SUM(J6:J12) -> 526 | L13: =SUM(L6:L12) -> 0
A14: =A6 -> 2 | B14: =B6 -> 4 | C14: Завтрак 2 | D14: фрукты | E14: Банан | F14: 100 | G14: 1.4 | H14: 0.3 | I14: 12.1 | J14: 64.2 | K14: 62
D15: хлеб | E15: Хлеб пшеничный | F15: 160 | G15: 3.1 | H15: 0.2 | I15: 20.1 | J15: 94.7 | K15: 37
D16: кондит.изд | E16: Кекс | F16: 30 | G16: 3.2 | H16: 4.1 | I16: 32.6 | J16: 106.4 | K16: 74
D17: гор.напиток | E17: Какао с молоком | F17: 200 | G17: 4.62 | H17: 4.02 | I17: 43.8 | J17: 177.56 | K17: 63
D18: итого | F18: =SUM(F14:F17) -> 490 | G18: =SUM(G14:G17) -> 12.32 | H18: =SUM(H14:H17) -> 8.62 | I18: =SUM(I14:I17) -> 108.6 | J18: =SUM(J14:J17) -> 265.3 | L18: =SUM(L14:L23) -> 
A19: =A6 -> 2 | B19: =B6 -> 4 | C19: Обед | D19: закуска
D20: 1 блюдо | E20: Суп лапша домашняя к/м. | F20: 250 | G20: 4.22 | H20: 3.95 | I20: 22.66 | J20: 152 | K20: 5
D21: 2 блюдо | E21: Капуста тушенная с мясным фаршем из говядины | F21: 200 | G21: 10 | H21: 8.2 | I21: 10.8 | J21: 280 | K21: 9
D22: гарнир
D23: напиток | E23: Компот из смеси с/ф. | F23: 200 | G23: 4 | H23: 0.06 | I23: 35.2 | J23: 110 | K23: 53
D24: хлеб бел.
D25: хлеб | E25: Хлеб"Дарницкий" | F25: 80 | G25: 2.6 | H25: 0.4 | I25: 17 | J25: 81.6 | K25: 36
D28: итого | F28: =SUM(F19:F27) -> 730 | G28: =SUM(G19:G27) -> 20.82 | H28: =SUM(H19:H27) -> 12.61 | I28: =SUM(I19:I27) -> 85.66 | J28: =SUM(J19:J27) -> 623.6 | L28: =SUM(L25:L33) -> 
A29: =A6 -> 2 | B29: =B6 -> 4 | C29: Полдник | D29: булочное
D30: напиток
D33: итого | F33: =SUM(F29:F32) -> 0 | G33: =SUM(G29:G32) -> 0 | H33: =SUM(H29:H32) -> 0 | I33: =SUM(I29:I32) -> 0 | J33: =SUM(J29:J32) -> 0 | L33: =SUM(L26:L32) -> 
A34: =A6 -> 2 | B34: =B6 -> 4 | C34: Ужин | D34: гор.блюдо | E34: Жаркое по домашнему | F34: 200/11 | G34: 24.7 | H34: 13.3 | I34: 16.5 | J34: 145.08 | K34: 8
D35: гарнир
D36: гор.напиток | E36: Чай сладкий | F36: 200 | G36: 0.1 | H36: 0 | I36: 9.9 | J36: 39.9 | K36: 51
D37: хлеб | E37: Хлеб"Дарницкий" | F37: 80 | G37: 2.6 | H37: 0.4 | I37: 17 | J37: 81.6 | K37: 36
D38: творог | E38: Творог со сметаной | F38: 200/10 | G38: 18 | H38: 9 | I38: 3 | J38: 164.3 | K38: 40
D39: масло | E39: Масло сливочное | F39: 10 | G39: 0.4 | H39: 62.5 | I39: 0.8 | J39: 70 | K39: 50
D40: итого | F40: =SUM(F34:F39) -> 290 | G40: =SUM(G34:G39) -> 45.8 | H40: =SUM(H34:H39) -> 85.2 | I40: =SUM(I34:I39) -> 47.2 | J40: =SUM(J34:J39) -> 500.88 | L40: =SUM(L34:L42) -> 
A41: =A6 -> 2 | B41: =B6 -> 4 | C41: Ужин 2 | D41: кисломол. | E41: Ряженка | F41: 200 | G41: 12 | H41: 2 | I41: 8.4 | J41: 80 | K41: 58
D42: фрукты | E42: Яблоки св. | F42: 100 | G42: 0.6 | H42: 0.6 | I42: 14.3 | J42: 68.6 | K42: 60
D43: напиток
D47: итого | F47: =SUM(F41:F46) -> 300 | G47: =SUM(G41:G46) -> 12.6 | H47: =SUM(H41:H46) -> 2.6 | I47: =SUM(I41:I46) -> 22.7 | J47: =SUM(J41:J46) -> 148.6 | L47: =SUM(L41:L48) -> 0
A48: =A6 -> 2 | B48: =B6 -> 4 | C48: Итого за день: | F48: =F13+F18+F28+F33+F40+F47 -> 2240 | G48: =G13+G18+G28+G33+G40+G47 -> 105.58 | H48: =H13+H18+H28+H33+H40+H47 -> 179.57 | I48: =I13+I18+I28+I33+I40+I47 -> 338.04 | J48: =J13+J18+J28+J33+J40+J47 -> 2064.38 | L48: =L13+L18+L28+L33+L40+L47 -> 

Sheet Лист5
B1: ГБОУ "Маскаринская школа- интернат для детей с ограниченными возможностями здоровья" | E1: Утвердил: | F1: должность | G1: директор
F2: фамилия | G2: Сабитов Ш. Н.
D3: 7-11 лет | F3: дата | I3: 2023
G4: день | H4: месяц | I4: год
A5: День недели | B5: Прием пищи | C5: Раздел меню | D5: Блюда | E5: Вес блюда, г | F5: Белки | G5: Жиры | H5: Углеводы | I5: Калорийность | J5: № рецептуры
A6: 1 | B6: Завтрак | C6: гор.блюдо | D6: Каша геркулес мол. | E6: 200/10 | F6: 9.7 | G6: 8.3 | H6: 36.8 | I6: 212 | J6: 23
C8: гор.напиток | D8: Какао с мол. | E8: 200 | F8: 4.62 | G8: 4.02 | H8: 43.8 | I8: 177.56 | J8: 63
C9: хлеб | D9: Хлеб пшеничной | E9: 120 | F9: 3.1 | G9: 0.2 | H9: 20.1 | I9: 94.7 | J9: 37
C10: фрукты | D10: Апельсин | E10: 100 | F10: 1.4 | G10: 0.3 | H10: 8.1 | I10: 34.2 | J10: 61
C11: масло слив. | D11: Масло сливочное | E11: 10 | F11: 0.4 | G11: 62.5 | H11: 0.8 | I11: 70 | J11: 50
C13: итого | E13: =SUM(E6:E12) -> 430 | F13: =SUM(F6:F12) -> 19.22 | G13: =SUM(G6:G12) -> 75.32 | H13: =SUM(H6:H12) -> 109.6 | I13: =SUM(I6:I12) -> 588.46
A14: =A6 -> 1 | B14: Завтрак 2 | C14: фрукты | D14: Банан | E14: 100 | F14: 1.4 | G14: 0.3 | H14: 12.1 | I14: 64.2 | J14: 62
C15: напиток | D15: Компот из смеси с/ф | E15: 200 | F15: 4 | G15: 0.06 | H15: 35.2 | I15: 110 | J15: 53
C16: хлеб бел. | D16: Хлеб пшеничный | E16: 160 | F16: 3.1 | G16: 0.2 | H16: 20.1 | I16: 94.7 | J16: 37
C17: кондит.изд. | D17: Булочка домашняя | E17: 80 | F17: 2.7 | G17: 6 | H17: 20.1 | I17: 99.8 | J17: 73
C18: итого | E18: =SUM(E14:E17) -> 540 | F18: =SUM(F14:F17) -> 11.2 | G18: =SUM(G14:G17) -> 6.56 | H18: =SUM(H14:H17) -> 87.5 | I18: =SUM(I14:I17) -> 368.7
A19: =A6 -> 1 | B19: Обед | C19: закуска | D19: Салат из свеклы | E19: 100 | F19: 1.8 | G19: 10 | H19: 10 | I19: 64.2 | J19: 33
C20: 1 блюдо | D20: Суп горох к/м | E20: 250 | F20: 9.2 | G20: 7.7 | H20: 16.3 | I20: 130.2 | J20: 7
C21: 2 блюдо | D21: Картофельное пюре | E21: 200/10 | F21: 4.9 | G21: 7.2 | H21: 34 | I21: 207 | J21: 17
C22: гарнир | D22: Гуляш из говядины | E22: 100 | F22: 10 | G22: 15.3 | H22: 5.5 | I22: 132.4 | J22: 25
C23: напиток | D23: Сок | E23: 200 | F23: 0.8 | G23: 0 | H23: 23 | I23: 94 | J23: 57
C24: хлеб бел.
C25: хлеб черн. | D25: Хлеб "Дарницкий" | E25: 80 | F25: 2.6 | G25: 0.4 | H25: 17 | I25: 81.6 | J25: 36
C28: итого | E28: =SUM(E19:E27) -> 730 | F28: =SUM(F19:F27) -> 29.3 | G28: =SUM(G19:G27) -> 40.6 | H28: =SUM(H19:H27) -> 105.8 | I28: =SUM(I19:I27) -> 709.4
A29: =A6 -> 1 | B29: Полдник | C29: кисломол.
C30: фрукты
C33: итого | E33: =SUM(E29:E32) -> 0 | F33: =SUM(F29:F32) -> 0 | G33: =SUM(G29:G32) -> 0 | H33: =SUM(H29:H32) -> 0 | I33: =SUM(I29:I32) -> 0
A34: =A6 -> 1 | B34: Ужин | C34: хлеб черн. | D34: Хлеб "Дарницкий" | E34: 80 | F34: 2.6 | G34: 0.4 | H34: 17 | I34: 81.6 | J34: 36
C35: масло слив. | D35: Масло сливочное | E35: 10 | F35: 0.4 | G35: 62.5 | H35: 0.8 | I35: 70 | J35: 50
C36: гарнир | D36: Рыба запеченная | E36: 150 | F36: 13.7 | G36: 6.2 | H36: 4.4 | I36: 97.1 | J36: 72
C37: 2 блюдо | D37: Каша рис. мол. | E37: 200 | F37: 5.8 | G37: 9.2 | H37: 42.6 | I37: 277.5 | J37: 21
C38: гор.напиток | D38: Чай слад. | E38: 200 | F38: 0.1 | G38: 0.02 | H38: 5.11 | I38: 21.14 | J38: 70
C40: итого | E40: =SUM(E34:E39) -> 640 | F40: =SUM(F34:F39) -> 22.6 | G40: =SUM(G34:G39) -> 78.32 | H40: =SUM(H34:H39) -> 69.91 | I40: =SUM(I34:I39) -> 547.34
A41: =A6 -> 1 | B41: Ужин 2 | C41: кисломол. | D41: Ряженка | E41: 200 | F41: 12 | G41: 2 | H41: 8.4 | I41: 80 | J41: 58
C42: фрукты | D42: Яблоки св. | E42: 100 | F42: 0.6 | G42: 0.6 | H42: 14.3 | I42: 68.6 | J42: 60
C43: напиток
C47: итого | E47: =SUM(E41:E46) -> 300 | F47: =SUM(F41:F46) -> 12.6 | G47: =SUM(G41:G46) -> 2.6 | H47: =SUM(H41:H46) -> 22.7 | I47: =SUM(I41:I46) -> 148.6
A48: =A6 -> 1 | B48: Итого за день: | E48: =E13+E18+E28+E33+E40+E47 -> 2640 | F48: =F13+F18+F28+F33+F40+F47 -> 94.92 | G48: =G13+G18+G28+G33+G40+G47 -> 203.4 | H48: =H13+H18+H28+H33+H40+H47 -> 395.51 | I48: =I13+I18+I28+I33+I40+I47 -> 2362.5
A49: 2 | B49: Завтрак | C49: гор.блюдо | D49: Каша манная мол. | E49: 200/10 | F49: 6 | G49: 5 | H49: 30.8 | I49: 200 | J49: 20
C50: гор.напиток | D50: Чай слад. | E50: 200 | F50: 0.1 | G50: 0.02 | H50: 5.11 | I50: 21.14 | J50: 70
C51: хлеб | D51: Хлеб пшеничный | E51: 120 | F51: 3.1 | G51: 0.2 | H51: 20.1 | I51: 94.7 | J51: 37
C52: масло слив. | D52: Масло слив. | E52: 10 | F52: 0.4 | G52: 62.5 | H52: 0.8 | I52: 70 | J52: 50
C53: сыр | D53: Сыр | E53: 24 | F53: 4.3 | G53: 5.4 | H53: 0 | I53: 67.4 | J53: 48
C54: фрукты | D54: Апельсин | E54: 100 | F54: 1.4 | G54: 0.3 | H54: 8.1 | I54: 34.2 | J54: 61
C56: итого | E56: =SUM(E50:E55) -> 454 | F56: =SUM(F49:F55) -> 15.3 | G56: =SUM(G49:G55) -> 10.92 | H56: =SUM(H49:H55) -> 64.91 | I56: =SUM(I49:I55) -> 487.44 | J56: =SUM(J49:J55) -> 286
A57: =A49 -> 2 | B57: Завтрак 2 | C57: фрукты | D57: Банан | E57: 100 | F57: 1.4 | G57: 0.3 | H57: 12.1 | I57: 64.2 | J57: 62
C58: напиток | D58: Кофейный напиток из цикория с мол | E58: 200 | F58: 4.32 | G58: 4.6 | H58: 9.6 | I58: 129.94 | J58: 54
C59: хлеб бел. | D59: Хлеб пшеничный | E59: 160 | F59: 3.1 | G59: 0.2 | H59: 20.1 | I59: 94.7 | J59: 37
D60: Яйцо вареное | E60: 1 | F60: 5.1 | G60: 4.6 | H60: 0.3 | I60: 63 | J60: 49
C61: кондит.изд. | D61: Печенье | E61: 30 | F61: 3 | G61: 1.9 | H61: 20.8 | I61: 166.8 | J61: 47
C62: итого | E62: =SUM(E57:E61) -> 491 | F62: =SUM(F57:F61) -> 16.92 | G62: =SUM(G57:G61) -> 11.6 | H62: =SUM(H57:H61) -> 62.9 | I62: =SUM(I57:I61) -> 518.64
A63: =A49 -> 2 | B63: Обед | C63: закуска
C64: 1 блюдо | D64: Суп лапша домашняя к/м. | E64: 250 | F64: 4.22 | G64: 3.95 | H64: 22.66 | I64: 152 | J64: 5
C65: 2 блюдо | D65: Овощное рагу с мясом говяд. | E65: 200/5 | F65: 3.46 | G65: 6.26 | H65: 9.98 | I65: 102.5 | J65: 10
C66: гарнир
C67: напиток | D67: Компот из смеси сухофруктов | E67: 200 | F67: 4 | G67: 0.06 | H67: 35.2 | I67: 110 | J67: 53
C68: хлеб бел.
C69: хлеб черн. | D69: Хлеб "Дарницкий" | E69: 80 | F69: 2.6 | G69: 0.4 | H69: 17 | I69: 81.6 | J69: 36
C72: итого | E72: =SUM(E63:E71) -> 530 | F72: =SUM(F63:F71) -> 14.28 | G72: =SUM(G63:G71) -> 10.67 | H72: =SUM(H63:H71) -> 84.84 | I72: =SUM(I63:I71) -> 446.1
A73: =A49 -> 2 | B73: Полдник | C73: кисломол.
C74: фрукты
C77: итого | E77: =SUM(E73:E76) -> 0 | F77: =SUM(F73:F76) -> 0 | G77: =SUM(G73:G76) -> 0 | I77: =SUM(I73:I76) -> 0 | J77: =SUM(J73:J76) -> 0
A78: =A49 -> 2 | B78: Ужин | C78: хлеб черн. | D78: Хлеб "Дарницкий" | E78: 80 | F78: 2.6 | G78: 0.4 | H78: 17 | I78: 81.6 | J78: 36
C79: 2 блюдо | D79: Каша гречнев рассып | E79: 200/20 | F79: 7 | G79: 5.1 | H79: 34.1 | I79: 200 | J79: 15
C80: гарнир | D80: Рыбные тефтели | E80: 75/75 | F80: 12.7 | G80: 5.2 | H80: 4.4 | I80: 95.1 | J80: 77
C81: гор.напиток | D81: Чай с молоком | E81: 200 | F81: 1.64 | G81: 1.64 | H81: 2.38 | I81: 30 | J81: 52
C82: масло слив. | D82: Масло слив. | E82: 15 | F82: 0.4 | G82: 62.5 | H82: 0.8 | I82: 70 | J82: 50
C84: итого | E84: =SUM(E78:E83) -> 295 | F84: =SUM(F78:F83) -> 24.34 | G84: =SUM(G78:G83) -> 74.84 | H84: =SUM(H78:H83) -> 58.68 | I84: =SUM(I78:I83) -> 476.7
A85: =A49 -> 2 | B85: Ужин 2 | C85: кисломол. | D85: Ряженка | E85: 200 | F85: 12 | G85: 2 | H85: 8.4 | I85: 80 | J85: 58
C86: фрукты | D86: Яблоки св. | E86: 150 | F86: 0.6 | G86: 0.6 | H86: 14.3 | I86: 68.6 | J86: 60
C87: напиток
C91: итого | E91: =SUM(E85:E90) -> 350 | F91: =SUM(F85:F90) -> 12.6 | G91: =SUM(G85:G90) -> 2.6 | H91: =SUM(H85:H90) -> 22.7 | I91: =SUM(I85:I90) -> 148.6
A92: =A49 -> 2 | B92: Итого за день: | E92: =E56+E62+E72+E77+E84+E91 -> 2120 | F92: =F56+F62+F72+F77+F84+F91 -> 83.44 | G92: =G56+G62+G72+G77+G84+G91 -> 110.63 | H92: =H56+H62+H72+H77+H84+H91 -> 294.03 | I92: =I56+I62+I72+I77+I84+I91 -> 2077.48
A93: 3 | B93: Завтрак | C93: гор.блюдо | D93: Омлет | E93: 200/5 | F93: 16.6 | G93: 18.24 | H93: 2.88 | I93: 200 | J93: 19
C94: гор.напиток | D94: Какао с молоком | E94: 200 | F94: 4.62 | G94: 4.02 | H94: 43.8 | I94: 177.56 | J94: 63
C95: хлеб | D95: Хлеб пшеничный | E95: 120 | F95: 3.1 | G95: 0.2 | H95: 20.1 | I95: 94.7 | J95: 37
C96: масло слив. | D96: Масло слив. | E96: 15 | F96: 0.4 | G96: 62.5 | H96: 0.8 | I96: 70 | J96: 50
C97: фрукты | D97: Апельсин | E97: 100 | F97: 1.4 | G97: 0.3 | H97: 8.1 | I97: 34.2 | J97: 61
C100: итого | E100: =SUM(E93:E99) -> 435 | F100: =SUM(F93:F99) -> 26.12 | G100: =SUM(G93:G99) -> 85.26 | H100: =SUM(H93:H99) -> 75.68 | I100: =SUM(I93:I99) -> 576.46
A101: =A93 -> 3 | B101: Завтрак 2 | C101: фрукты | D101: Банан | E101: 100 | F101: 1.4 | G101: 0.3 | H101: 12.1 | I101: 64 | J101: 62
D102: Хлеб пшеничный | E102: 160 | F102: 3.1 | G102: 0.2 | H102: 20.1 | I102: 94.7 | J102: 37
D103: Компот из с/ф | E103: 200 | F103: 4 | G103: 0.06 | H103: 35.2 | I103: 110 | J103: 53
D104: Треугольник | E104: 80 | F104: 6.23 | G104: 5.38 | H104: 38.25 | I104: 150 | J104: 42
C105: итого | E105: =SUM(E101:E104) -> 540 | F105: =SUM(F101:F104) -> 14.73 | G105: =SUM(G101:G104) -> 5.94 | H105: =SUM(H101:H104) -> 105.65 | I105: =SUM(I101:I104) -> 418.9
A106: =A93 -> 3 | B106: Обед | C106: закуска | D106: Салат морковный | E106: 100 | F106: 1.16 | G106: 8.3 | H106: 14.6 | I106: 98.8 | J106: 35
C107: 1 блюдо | D107: Борщ к/м со сметаной | E107: 250/15 | F107: 8.4 | G107: 10.3 | H107: 13.7 | I107: 105.2 | J107: 2
C108: 2 блюдо | D108: Каша ячневая с мяс говядины | E108: 200/10 | F108: 11.2 | G108: 5.9 | H108: 63.7 | I108: 445.6 | J108: 13
C109: гарнир
C110: напиток | D110: Сок | E110: 200 | F110: 0.8 | G110: 0 | H110: 23 | I110: 94 | J110: 57
C111: хлеб бел.
C112: хлеб черн. | D112: Хлеб "Дарницкий" | E112: 80 | F112: 2.6 | G112: 0.4 | H112: 17 | I112: 81.6 | J112: 36
C115: итого | E115: =SUM(E106:E114) -> 380 | F115: =SUM(F106:F114) -> 24.16 | G115: =SUM(G106:G114) -> 24.9 | H115: =SUM(H106:H114) -> 132 | I115: =SUM(I106:I114) -> 825.2
A116: =A93 -> 3 | B116: Полдник | C116: кисломол.
C117: фрукты
C120: итого | E120: =SUM(E116:E119) -> 0 | F120: =SUM(F116:F119) -> 0 | G120: =SUM(G116:G119) -> 0 | H120: =SUM(H116:H119) -> 0 | I120: =SUM(I116:I119) -> 0
A121: =A93 -> 3 | B121: Ужин | C121: хлеб черн. | D121: Хлеб "Дарницкий" | E121: 80 | F121: 2.6 | G121: 0.4 | H121: 17 | I121: 81.6 | J121: 36
C122: масло слив. | D122: Масло слив. | E122: 15 | F122: 0.4 | G122: 62.5 | H122: 0.8 | I122: 70 | J122: 50
C123: 1 блюдо | D123: Суп молочный рожки | E123: 200/5 | F123: 8 | G123: 9 | H123: 25.2 | I123: 214.8 | J123: 6
C124: творог | D124: Творог со сметаной | E124: 200/10 | F124: 18 | G124: 9 | H124: 3 | I124: 164.3 | J124: 40
C125: гор.напиток | D125: Чай слад. | E125: 200 | F125: 0.1 | G125: 0 | H125: 9.9 | I125: 39.9 | J125: 51
C127: итого | E127: =SUM(E121:E126) -> 295 | F127: =SUM(F121:F126) -> 29.1 | G127: =SUM(G121:G126) -> 80.9 | H127: =SUM(H121:H126) -> 55.9 | I127: =SUM(I121:I126) -> 570.6
A128: =A93 -> 3 | B128: Ужин 2 | C128: кисломол. | D128: Ряженка | E128: 200 | F128: 12 | G128: 2 | H128: 8.4 | I128: 80 | J128: 58
C129: фрукты | D129: Яблоки св. | E129: 100 | F129: 0.6 | G129: 0.6 | H129: 14.3 | I129: 68.6 | J129: 60
C130: напиток
C134: итого | E134: =SUM(E128:E133) -> 300 | F134: =SUM(F128:F133) -> 12.6 | G134: =SUM(G128:G133) -> 2.6 | H134: =SUM(H128:H133) -> 22.7 | I134: =SUM(I128:I133) -> 148.6
A135: =A93 -> 3 | B135: Итого за день: | E135: =E100+E105+E115+E120+E127+E134 -> 1950 | F135: =F100+F105+F115+F120+F127+F134 -> 106.71 | G135: =G100+G105+G115+G120+G127+G134 -> 199.6 | H135: =H100+H105+H115+H120+H127+H134 -> 391.93 | I135: =I100+I105+I115+I120+I127+I134 -> 2539.76
A136: 4 | B136: Завтрак | C136: гор.блюдо | D136: Каша геркулес молочный | E136: 200/10 | F136: 9.7 | G136: 8.3 | H136: 36.8 | I136: 212 | J136: 23
C137: гор.напиток | D137: Кофейный напиток из цикория | E137: 200 | F137: 4.32 | G137: 4.6 | H137: 9.6 | I137: 129.94 | J137: 54
C138: хлеб | D138: Хлеб пшеничный | E138: 120 | F138: 3.1 | G138: 0.2 | H138: 20.1 | I138: 94.7 | J138: 37
C139: масло слив. | D139: Масло слив. | E139: 15 | F139: 0.4 | G139: 62.5 | H139: 0.8 | I139: 70 | J139: 50
C140: сыр | D140: Сыр | E140: 24 | F140: 4.3 | G140: 5.4 | H140: 0 | I140: 67.4 | J140: 48
C141: фрукты | D141: Апельсин | E141: 100 | F141: 1.4 | G141: 0.3 | H141: 8.1 | I141: 34.2 | J141: 61
C143: итого | E143: =SUM(E136:E142) -> 459 | F143: =SUM(F136:F142) -> 23.22 | G143: =SUM(G136:G142) -> 81.3 | H143: =SUM(H136:H142) -> 75.4 | I143: =SUM(I136:I142) -> 608.24
A144: =A136 -> 4 | B144: Завтрак 2 | C144: фрукты | D144: Банан | E144: 100 | F144: 1.4 | G144: 0.3 | H144: 12.1 | I144: 64.2 | J144: 62
C145: хлеб бел. | D145: Хлеб пшеничный | E145: 160 | F145: 3.1 | G145: 0.2 | H145: 20.1 | I145: 94.7 | J145: 37
C146: напиток | D146: Сок | E146: 200 | F146: 0.8 | G146: 0 | H146: 23 | I146: 94 | J146: 57
C147: кондит.изд. | D147: Вафли | E147: 30 | F147: 1 | G147: 8.8 | H147: 18.8 | I147: 154.2 | J147: 46
C148: итого | E148: =SUM(E144:E147) -> 490 | F148: =SUM(F144:F147) -> 6.3 | G148: =SUM(G144:G147) -> 9.3 | H148: =SUM(H144:H147) -> 74 | I148: =SUM(I144:I147) -> 407.1
A149: =A136 -> 4 | B149: Обед | C149: закуска | D149: Салат из белокач.капусты | E149: 100 | F149: 2.1 | G149: 8.5 | H149: 10.5 | I149: 105.5 | J149: 31
C150: 1 блюдо | D150: Рассольник с перловкой со сметаной | E150: 250/10 | F150: 4.65 | G150: 10.01 | H150: 10.08 | I150: 132.3 | J150: 4
C151: 2 блюдо | D151: Картофельное пюре | E151: 200/10 | F151: 4.9 | G151: 7.2 | H151: 34 | I151: 207 | J151: 17
C152: гарнир | D152: Котлеты из говядины | E152: 100 | F152: 21 | G152: 22.2 | H152: 15 | I152: 217.2 | J152: 27
C153: напиток | D153: Компот из смеси сухофруктов | E153: 200 | F153: 4 | G153: 0.06 | H153: 35.2 | I153: 110 | J153: 53
C154: хлеб бел.
C155: хлеб черн. | D155: Хлеб "Дарницкий" | E155: 80 | F155: 2.6 | G155: 0.4 | H155: 17 | I155: 81.6 | J155: 36
C158: итого | E158: =SUM(E149:E157) -> 480 | F158: =SUM(F149:F157) -> 39.25 | G158: =SUM(G149:G157) -> 48.37 | H158: =SUM(H149:H157) -> 121.78 | I158: =SUM(I149:I157) -> 853.6
A159: =A136 -> 4 | B159: Полдник | C159: кисломол.
C160: фрукты
C163: итого | E163: =SUM(E159:E162) -> 0 | F163: =SUM(F159:F162) -> 0 | G163: =SUM(G159:G162) -> 0 | H163: =SUM(H159:H162) -> 0 | I163: =SUM(I159:I162) -> 0
A164: =A136 -> 4 | B164: Ужин | C164: хлеб черн. | D164: Хлеб "Дарницкий" | E164: 80 | F164: 2.6 | G164: 0.4 | H164: 17 | I164: 81.6 | J164: 36
C165: масло слив. | D165: Масло слив. | E165: 15 | F165: 0.4 | G165: 62.5 | H165: 0.8 | I165: 70 | J165: 50
C166: гор.напиток | D166: Чай с мол. | E166: 200 | F166: 1.64 | G166: 1.64 | H166: 2.38 | I166: 30 | J166: 52
C167: 2 блюдо | D167: Плов из говядины | E167: 200 | F167: 18.8 | G167: 15.6 | H167: 18.6 | I167: 215.7 | J167: 11
C170: итого | E170: =SUM(E164:E169) -> 495 | F170: =SUM(F164:F169) -> 23.44 | G170: =SUM(G164:G169) -> 80.14 | H170: =SUM(H164:H169) -> 38.78 | I170: =SUM(I164:I169) -> 397.3
A171: =A136 -> 4 | B171: Ужин 2 | C171: кисломол. | D171: Ряженка | E171: 200 | F171: 12 | G171: 2 | H171: 8.4 | I171: 80 | J171: 58
C172: фрукты | D172: Яблоки св. | E172: 100 | F172: 0.6 | G172: 0.6 | H172: 14.3 | I172: 68.6 | J172: 60
C173: напиток
C177: итого | E177: =SUM(E171:E176) -> 300 | F177: =SUM(F171:F176) -> 12.6 | G177: =SUM(G171:G176) -> 2.6 | H177: =SUM(H171:H176) -> 22.7 | I177: =SUM(I171:I176) -> 148.6
A178: =A136 -> 4 | B178: Итого за день: | E178: =E143+E148+E158+E163+E170+E177 -> 2224 | F178: =F143+F148+F158+F163+F170+F177 -> 104.81 | G178: =G143+G148+G158+G163+G170+G177 -> 221.71 | H178: =H143+H148+H158+H163+H170+H177 -> 332.66 | I178: =I143+I148+I158+I163+I170+I177 -> 2414.84
A179: 5 | B179: Завтрак | C179: гор.блюдо | D179: Каша манная мол. | E179: 200/10 | F179: 6 | G179: 5 | H179: 30.8 | I179: 200 | J179: 20
C180: гор.напиток | D180: Чай слад. | E180: 200 | F180: 0.1 | G180: 0 | H180: 9.9 | I180: 39.9 | J180: 51
C181: хлеб | D181: Хлеб пшеничный | E181: 120 | F181: 3.1 | G181: 0.2 | H181: 20.1 | I181: 94.7 | J181: 37
C182: масло слив. | D182: Масло слив. | E182: 15 | F182: 0.4 | G182: 62.5 | H182: 0.8 | I182: 70 | J182: 50
C183: фрукты | D183: Апельсин | E183: 100 | F183: 1.4 | G183: 0.3 | H183: 8.1 | I183: 34.2 | J183: 61
C186: итого | E186: =SUM(E179:E185) -> 435 | F186: =SUM(F179:F185) -> 11 | G186: =SUM(G179:G185) -> 68 | H186: =SUM(H179:H185) -> 69.7 | I186: =SUM(I179:I185) -> 438.8
A187: =A179 -> 5 | B187: Завтрак 2 | C187: фрукты | D187: Банан | E187: 100 | F187: 1.4 | G187: 0.3 | H187: 12.1 | I187: 64 | J187: 62
C188: напиток | D188: Компот из с/ф | E188: 200 | F188: 4 | G188: 0.06 | H188: 35.2 | I188: 110 | J188: 53
C189: выпечка | D189: Запеканка творожная | E189: 150/15 | F189: 20.44 | G189: 20 | H189: 29.6 | I189: 325 | J189: 41
C190: хлеб бел. | D190: Хлеб пшеничный | E190: 120 | F190: 3.1 | G190: 0.2 | H190: 20.1 | I190: 94.7 | J190: 37
C191: итого | E191: =SUM(E187:E190) -> 420 | F191: =SUM(F187:F190) -> 28.94 | G191: =SUM(G187:G190) -> 20.56 | H191: =SUM(H187:H190) -> 97 | I191: =SUM(I187:I190) -> 593.9
A192: =A179 -> 5 | B192: Обед | C192: закуска | D192: Свекла вар. дольками | E192: 100 | F192: 1.17 | G192: 6.96 | H192: 8.8 | I192: 60 | J192: 32
C193: 1 блюдо | D193: Суп крестьян с пшеном со смет | E193: 250/15 | F193: 10 | G193: 8.63 | H193: 7.9 | I193: 167.3 | J193: 65
C194: 2 блюдо | D194: Овощное рагу с мясом говяд. | E194: 200/5 | F194: 3.46 | G194: 6.26 | H194: 9.98 | I194: 102.5 | J194: 10
C195: гарнир
C196: напиток | D196: Сок | E196: 200 | F196: 0.8 | G196: 0 | H196: 23 | I196: 94 | J196: 57
C197: хлеб бел.
C198: хлеб черн. | D198: Хлеб "Дарницкий" | E198: 80 | F198: 2.6 | G198: 0.4 | H198: 17 | I198: 81.6 | J198: 36
C201: итого | E201: =SUM(E192:E200) -> 380 | F201: =SUM(F192:F200) -> 18.03 | G201: =SUM(G192:G200) -> 22.25 | H201: =SUM(H192:H200) -> 66.68 | I201: =SUM(I192:I200) -> 505.4
A202: =A179 -> 5 | B202: Полдник | C202: кисломол.
C203: фрукты
C206: итого | E206: =SUM(E202:E205) -> 0 | F206: =SUM(F202:F205) -> 0 | G206: =SUM(G202:G205) -> 0 | H206: =SUM(H202:H205) -> 0 | I206: =SUM(I202:I205) -> 0
A207: =A179 -> 5 | B207: Ужин | C207: хлеб черн. | D207: Хлеб "Дарницкий" | E207: 80 | F207: 2.6 | G207: 0.4 | H207: 17 | I207: 81.6 | J207: 36
C208: гор.напиток | D208: Какао с мол. | E208: 200 | F208: 4.62 | G208: 4.02 | H208: 43.8 | I208: 177.56 | J208: 63
C209: гарнир | D209: Рыба запеченная | E209: 150 | F209: 13.7 | G209: 6.2 | H209: 4.4 | I209: 97.1 | J209: 72
C210: 2 блюдо | D210: Гороховое пюре | E210: 200 | F210: 14.8 | G210: 12 | H210: 28.5 | I210: 128.5 | J210: 16
C211: масло слив. | D211: Масло слив. | E211: 15 | F211: 0.4 | G211: 62.5 | H211: 0.8 | I211: 70 | J211: 50
C213: итого | E213: =SUM(E207:E212) -> 645 | F213: =SUM(F207:F212) -> 36.12 | G213: =SUM(G207:G212) -> 85.12 | H213: =SUM(H207:H212) -> 94.5 | I213: =SUM(I207:I212) -> 554.76
A214: =A179 -> 5 | B214: Ужин 2 | C214: кисломол. | D214: Ряженка | E214: 200 | F214: 12 | G214: 2 | H214: 8.4 | I214: 80 | J214: 58
C215: фрукты | D215: Яблоки св. | E215: 100 | F215: 0.6 | G215: 0.6 | H215: 14.3 | I215: 68.6 | J215: 60
C216: напиток
C220: итого | E220: =SUM(E214:E219) -> 300 | F220: =SUM(F214:F219) -> 12.6 | G220: =SUM(G214:G219) -> 2.6 | H220: =SUM(H214:H219) -> 22.7 | I220: =SUM(I214:I219) -> 148.6
A221: =A179 -> 5 | B221: Итого за день: | E221: =E186+E191+E201+E206+E213+E220 -> 2180 | F221: =F186+F191+F201+F206+F213+F220 -> 106.69 | G221: =G186+G191+G201+G206+G213+G220 -> 198.53 | H221: =H186+H191+H201+H206+H213+H220 -> 350.58 | I221: =I186+I191+I201+I206+I213+I220 -> 2241.46
A222: 6 | B222: Завтрак | C222: гор.блюдо | D222: Каша пшенич молочная | E222: 200/8 | F222: 10.8 | G222: 10.9 | H222: 57.8 | I222: 367.9 | J222: 14
C223: гор.напиток | D223: Какао с молоком | E223: 200 | F223: 4.62 | G223: 4.02 | H223: 43.8 | I223: 177.56 | J223: 63
C224: хлеб бел. | D224: Хлеб пшеничный | E224: 120 | F224: 3.1 | G224: 0.2 | H224: 20.1 | I224: 94.7 | J224: 37
C225: кондит.изд. | D225: Кекс | E225: 30 | F225: 3.2 | G225: 4.1 | H225: 32.6 | I225: 106.4 | J225: 74
C226: сыр | D226: Сыр | E226: 24 | F226: 4.3 | G226: 5.4 | H226: 0 | I226: 67.4 | J226: 48
D227: Апельсин | E227: 100 | F227: 1.4 | G227: 0.3 | H227: 8.1 | I227: 34.2 | J227: 61
C228: масло слив. | D228: Масло слив. | E228: 10 | F228: 0.4 | G228: 62.5 | H228: 0.8 | I228: 70 | J228: 50
C229: итого | E229: =SUM(E222:E228) -> 484 | F229: =SUM(F222:F228) -> 27.82 | G229: =SUM(G222:G228) -> 87.42 | H229: =SUM(H222:H228) -> 163.2 | I229: =SUM(I222:I228) -> 918.16
A230: =A222 -> 6 | B230: Завтрак 2 | C230: фрукты
C234: итого | E234: =SUM(E230:E233) -> 0 | F234: =SUM(F230:F233) -> 0 | G234: =SUM(G230:G233) -> 0 | H234: =SUM(H230:H233) -> 0 | I234: =SUM(I230:I233) -> 0
A235: =A222 -> 6 | B235: Обед | C235: закуска | D235: Салат морковный | E235: 100 | F235: 1.16 | G235: 8.3 | H235: 14.6 | I235: 98.8 | J235: 35
C236: 1 блюдо | D236: Щи к/м со сметаной | E236: 250/15 | F236: 9.1 | G236: 10.5 | H236: 15.9 | I236: 194.9 | J236: 1
C237: 2 блюдо | D237: Макароны отварные | E237: 200/10 | F237: 7.6 | G237: 9.2 | H237: 48.8 | I237: 150.7 | J237: 18
C238: гарнир | D238: Гуляш из говядины | E238: 100 | F238: 10 | G238: 15.3 | H238: 5.5 | I238: 132.4 | J238: 25
C239: напиток | D239: Компот из с/ф | E239: 200 | F239: 4 | G239: 0.06 | H239: 35.2 | I239: 110 | J239: 53
C240: хлеб бел.
C241: хлеб.черн. | D241: Хлеб "Дарницкий" | E241: 80 | F241: 2.6 | G241: 0.4 | H241: 17 | I241: 81.6 | J241: 36
C242: фрукты | D242: Банан | E242: 100 | F242: 1 | G242: 0 | H242: 12 | I242: 64 | J242: 62
C244: итого | E244: =SUM(E235:E243) -> 580 | F244: =SUM(F235:F243) -> 35.86 | G244: =SUM(G235:G243) -> 44.06 | H244: =SUM(H235:H243) -> 149.1 | I244: =SUM(I235:I243) -> 832.6
A245: =A222 -> 6 | B245: Полдник | C245: кисломол.
C246: фрукты
C249: итого | E249: =SUM(E245:E248) -> 0 | F249: =SUM(F245:F248) -> 0 | G249: =SUM(G245:G248) -> 0 | H249: =SUM(H245:H248) -> 0 | I249: =SUM(I245:I248) -> 0
A250: =A222 -> 6 | B250: Ужин | C250: 2 блюдо | D250: Каша рис. мол. | E250: 200 | F250: 5.8 | G250: 9.2 | H250: 42.6 | I250: 277.5 | J250: 21
C251: гарнир | D251: Котлеты из говядины | E251: 100 | F251: 21 | G251: 22.2 | H251: 15 | I251: 217.2 | J251: 27
C252: хлеб.черн. | D252: Хлеб "Дарницкий" | E252: 80 | F252: 2.6 | G252: 0.4 | H252: 17 | I252: 81.6 | J252: 36
C253: масло слив. | D253: Масло слив. | E253: 10 | F253: 0.4 | G253: 62.5 | H253: 0.8 | I253: 70 | J253: 50
C254: гор.напиток | D254: Чай слад. | E254: 200 | F254: 0.1 | G254: 0 | H254: 9.9 | I254: 39.9 | J254: 51
C256: итого | E256: =SUM(E250:E255) -> 590 | F256: =SUM(F250:F255) -> 29.9 | G256: =SUM(G250:G255) -> 94.3 | H256: =SUM(H250:H255) -> 85.3 | I256: =SUM(I250:I255) -> 686.2
... 273 more rows

Sheet 6дн
B1: ГБОУ "Маскаринская школа- интернат для детей с ограниченными возможностями здоровья" | E1: Утвердил: | F1: должность | G1: директор
F2: фамилия | G2: Сабитов Ш. Н.
D3: 7-11 лет | F3: дата | I3: 2023
G4: день | H4: месяц | I4: год
A5: День недели | B5: Прием пищи | C5: Раздел меню | D5: Блюда | E5: Вес блюда, г | F5: Белки | G5: Жиры | H5: Углеводы | I5: Калорийность | J5: № рецептуры
A6: 6 | B6: Завтрак | C6: гор.блюдо | D6: Каша манная молочная | E6: 200/10 | F6: 6 | G6: 5 | H6: 30.8 | I6: 200 | J6: 20
C7: масло | D7: Масло сливочное | E7: 15 | F7: 0.4 | G7: 62.5 | H7: 0.8 | I7: 70 | J7: 50
C8: гор.напиток | D8: Кофейный напиток из цикория | E8: 200 | F8: 4.32 | G8: 4.6 | H8: 9.6 | I8: 129.94 | J8: 54
C9: хлеб | D9: Хлеб пшеничный | E9: 160 | F9: 3.1 | G9: 0.2 | H9: 20.1 | I9: 94.7 | J9: 37
C10: фрукты | D10: Апельсин | E10: 100 | F10: 1.4 | G10: 0.3 | H10: 8.1 | I10: 34.2 | J10: 61
C11: кондит.изд | D11: Вафли | E11: 30 | F11: 1 | G11: 8.8 | H11: 18.8 | I11: 154.2 | J11: 46
C13: итого | E13: =SUM(E6:E12) -> 505 | F13: =SUM(F6:F12) -> 16.22 | G13: =SUM(G6:G12) -> 81.4 | H13: =SUM(H6:H12) -> 88.2 | I13: =SUM(I6:I12) -> 683.04
A14: =A6 -> 6 | B14: Завтрак 2 | C14: фрукты
C17: итого | E17: =SUM(E14:E16) -> 0 | F17: =SUM(F14:F16) -> 0 | G17: =SUM(G14:G16) -> 0 | H17: =SUM(H14:H16) -> 0 | I17: =SUM(I14:I16) -> 0
A18: =A6 -> 6 | B18: Обед | C18: закуска | D18: Свекла вареная дольками | E18: 100 | F18: 1.17 | G18: 6.96 | H18: 8.8 | I18: 60 | J18: 32
C19: 1 блюдо | D19: Суп крестьян с пшеном со смет | E19: 250/15 | F19: 10 | G19: 8.63 | H19: 7.9 | I19: 167.3 | J19: 65
C20: 2 блюдо | D20: Гороховое пюре | E20: 200 | F20: 14.8 | G20: 12 | H20: 28.5 | I20: 128.5 | J20: 16
C21: гарнир | D21: Котлеты из говядины | E21: 100 | F21: 21 | G21: 22.2 | H21: 15 | I21: 217.2 | J21: 27
C22: напиток | D22: Компот из смеси с/ф. | E22: 200 | F22: 4 | G22: 0.06 | H22: 35.2 | I22: 110 | J22: 53
C23: хлеб бел.
C24: хлеб | D24: Хлеб"Дарницкий" | E24: 80 | F24: 2.6 | G24: 0.4 | H24: 17 | I24: 81.6 | J24: 36
C25: фрукты | D25: Банан | E25: 100 | F25: 1.4 | G25: 0.3 | H25: 12.1 | I25: 64.2 | J25: 62
C27: итого | E27: =SUM(E18:E26) -> 780 | F27: =SUM(F18:F26) -> 54.97 | G27: =SUM(G18:G26) -> 50.55 | H27: =SUM(H18:H26) -> 124.5 | I27: =SUM(I18:I26) -> 828.8
A28: =A6 -> 6 | B28: Полдник | C28: булочное
C29: напиток
C32: итого | E32: =SUM(E28:E31) -> 0 | F32: =SUM(F28:F31) -> 0 | G32: =SUM(G28:G31) -> 0 | H32: =SUM(H28:H31) -> 0 | I32: =SUM(I28:I31) -> 0
A33: =A6 -> 6 | B33: Ужин | C33: гор.блюдо | D33: Овощное рагу с мяом говядины | E33: 200/5 | F33: 3.46 | G33: 6.26 | H33: 9.98 | I33: 102.5 | J33: 10
C34: гарнир
C35: гор.напиток | D35: Чай с молоком | E35: 200 | F35: 1.64 | G35: 1.64 | H35: 2.38 | I35: 30 | J35: 52
C36: хлеб | D36: Хлеб"Дарницкий" | E36: 80 | F36: 2.6 | G36: 0.4 | H36: 17 | I36: 81.6 | J36: 36
C37: масло | D37: Масло сливочное | E37: 15 | F37: 0.4 | G37: 62.5 | H37: 0.8 | I37: 70 | J37: 50
C39: итого | E39: =SUM(E33:E38) -> 295 | F39: =SUM(F33:F38) -> 8.1 | G39: =SUM(G33:G38) -> 70.8 | H39: =SUM(H33:H38) -> 30.16 | I39: =SUM(I33:I38) -> 284.1
A40: =A6 -> 6 | B40: Ужин 2 | C40: кисломол. | D40: Ряженка | E40: 200 | F40: 12 | G40: 2 | H40: 8.4 | I40: 80 | J40: 58
C41: фрукты | D41: Яблоки св. | E41: 100 | F41: 0.6 | G41: 0.6 | H41: 14.3 | I41: 68.6 | J41: 60
C42: напиток
C46: итого | E46: =SUM(E40:E45) -> 300 | F46: =SUM(F40:F45) -> 12.6 | G46: =SUM(G40:G45) -> 2.6 | H46: =SUM(H40:H45) -> 22.7 | I46: =SUM(I40:I45) -> 148.6
A47: =A6 -> 6 | B47: Итого за день: | E47: =E13+E17+E27+E32+E39+E46 -> 1880 | F47: =F13+F17+F27+F32+F39+F46 -> 91.89 | G47: =G13+G17+G27+G32+G39+G46 -> 205.35 | H47: =H13+H17+H27+H32+H39+H46 -> 265.56 | I47: =I13+I17+I27+I32+I39+I46 -> 1944.54

Sheet 7дн
B1: ГБОУ "Маскаринская школа- интернат для детей с ограниченными возможностями здоровья" | E1: Утвердил: | F1: должность | G1: директор
F2: фамилия | G2: Сабитов Ш. Н.
D3: 7-11 лет | F3: дата | I3: 2023
G4: день | H4: месяц | I4: год
A5: 7 | B5: Завтрак | C5: гор.блюдо | D5: Суп молочный рожки | E5: 250/5 | F5: 8 | G5: 9 | H5: 25.2 | I5: 214.8 | J5: 6
C6: масло | D6: Масло сливочное | E6: 15 | F6: 0.4 | G6: 62.5 | H6: 0.8 | I6: 70 | J6: 50
C7: гор.напиток | D7: Чай сладкий | E7: 200 | F7: 0.1 | G7: 0 | H7: 9.9 | I7: 39.9 | J7: 51
C8: хлеб | D8: Хлеб пшеничный | E8: 120 | F8: 3.1 | G8: 0.2 | H8: 20.1 | I8: 94.7 | J8: 37
C9: фрукты | D9: Апельсин | E9: 100 | F9: 1.4 | G9: 0.3 | H9: 8.1 | I9: 34.2 | J9: 61
C10: сыр | D10: Сыр | E10: 24 | F10: 4.3 | G10: 5.4 | H10: 0 | I10: 67.4 | J10: 48
C11: кондит.изд | D11: Печенье | E11: 30 | F11: 3 | G11: 1.9 | H11: 20.8 | I11: 166.8 | J11: 47
C12: итого | E12: =SUM(E5:E11) -> 489 | F12: =SUM(F5:F11) -> 20.3 | G12: =SUM(G5:G11) -> 79.3 | H12: =SUM(H5:H11) -> 84.9 | I12: =SUM(I5:I11) -> 687.8
A13: =A5 -> 7 | B13: Завтрак 2 | C13: фрукты
C16: итого | E16: =SUM(E13:E15) -> 0 | F16: =SUM(F13:F15) -> 0 | G16: =SUM(G13:G15) -> 0 | H16: =SUM(H13:H15) -> 0 | I16: =SUM(I13:I15) -> 0
A17: =A5 -> 7 | B17: Обед | C17: закуска | D17: Салат из белокач.капусты | E17: 100 | F17: 2.1 | G17: 8.5 | H17: 10.5 | I17: 105.5 | J17: 31
C18: 1 блюдо | D18: Суп картофельный с фрикадельками | E18: 250 | F18: 2.1 | G18: 2.15 | H18: 16.5 | I18: 90 | J18: 3
C19: 2 блюдо
C20: гарнир
C21: напиток | D21: Сок | E21: 200 | F21: 0.8 | G21: 0 | H21: 23 | I21: 94 | J21: 57
C22: хлеб бел.
C23: хлеб | D23: Хлеб"Дарницкий" | E23: 120 | F23: 2.6 | G23: 0.4 | H23: 17 | I23: 81.6 | J23: 36
C24: фрукты | D24: Банан | E24: 100 | F24: 1.4 | G24: 0.3 | H24: 12.1 | I24: 64.2 | J24: 62
C26: итого | E26: =SUM(E17:E25) -> 770 | F26: =SUM(F17:F25) -> 9 | G26: =SUM(G17:G25) -> 11.35 | H26: =SUM(H17:H25) -> 79.1 | I26: =SUM(I17:I25) -> 435.3
A27: =A5 -> 7 | B27: Полдник | C27: булочное
C28: напиток
C31: итого | E31: =SUM(E27:E30) -> 0 | F31: =SUM(F27:F30) -> 0 | G31: =SUM(G27:G30) -> 0 | H31: =SUM(H27:H30) -> 0 | I31: =SUM(I27:I30) -> 0
A32: =A5 -> 7 | B32: Ужин | C32: гор.блюдо | D32: Каша ячневая с мясом говядины | E32: 200/10 | F32: 11.2 | G32: 5.9 | H32: 63.7 | I32: 445.6 | J32: 13
C33: гарнир
C34: гор.напиток | D34: Чай с молоком | E34: 200 | F34: 1.64 | G34: 1.64 | H34: 2.38 | I34: 30 | J34: 52
C35: хлеб | D35: Хлеб пшеничный | E35: 120 | F35: 3.1 | G35: 0.2 | H35: 20.1 | I35: 94.7 | J35: 37
C36: масло | D36: Масло сливочное | E36: 20 | F36: 0.4 | G36: 62.5 | H36: 0.8 | I36: 70 | J36: 50
C38: итого | E38: =SUM(E32:E37) -> 340 | F38: =SUM(F32:F37) -> 16.34 | G38: =SUM(G32:G37) -> 70.24 | H38: =SUM(H32:H37) -> 86.98 | I38: =SUM(I32:I37) -> 640.3
A39: =A5 -> 7 | B39: Ужин 2 | C39: кисломол. | D39: Ряженка | E39: 200 | F39: 12 | G39: 2 | H39: 8.4 | I39: 80 | J39: 58
C40: фрукты | D40: Яблоки св. | E40: 100 | F40: 0.6 | G40: 0.6 | H40: 14.3 | I40: 68.6 | J40: 60
C41: напиток
C42: фрукты
C45: итого | E45: =SUM(E39:E44) -> 300 | F45: =SUM(F39:F44) -> 12.6 | G45: =SUM(G39:G44) -> 2.6 | H45: =SUM(H39:H44) -> 22.7 | I45: =SUM(I39:I44) -> 148.6
A46: =A5 -> 7 | B46: Итого за день: | E46: =E12+E16+E26+E31+E38+E45 -> 1899 | F46: =F12+F16+F26+F31+F38+F45 -> 58.24 | G46: =G12+G16+G26+G31+G38+G45 -> 163.49 | H46: =H12+H16+H26+H31+H38+H45 -> 273.68 | I46: =I12+I16+I26+I31+I38+I45 -> 1912
B47: Среднее значение за период: | E47: =(#REF!+#REF!+#REF!+#REF!+#REF!+#REF!+#REF!+#REF!+#REF!+#REF!+#REF!+#REF!+#REF!+E46)/(IF(#REF!=0,0,1)+IF(#REF!=0,0,1)+IF(#REF!=0,0,1)+IF(#REF!=0,0,1)+IF(#REF!=0,0,1)+IF(#REF!=0,0,1)+IF(#REF!=0,0,1)+IF(#REF!=0,0,1)+IF(#REF!=0,0,1)+IF(#REF!=0,0,1)+IF(#REF!=0,0,1)+IF(#REF!=0,0,1)+IF(#REF!=0,0,1)+IF(E46=0,0,1)) ->  | F47: =(#REF!+#REF!+#REF!+#REF!+#REF!+#REF!+#REF!+#REF!+#REF!+#REF!+#REF!+#REF!+#REF!+F46)/(IF(#REF!=0,0,1)+IF(#REF!=0,0,1)+IF(#REF!=0,0,1)+IF(#REF!=0,0,1)+IF(#REF!=0,0,1)+IF(#REF!=0,0,1)+IF(#REF!=0,0,1)+IF(#REF!=0,0,1)+IF(#REF!=0,0,1)+IF(#REF!=0,0,1)+IF(#REF!=0,0,1)+IF(#REF!=0,0,1)+IF(#REF!=0,0,1)+IF(F46=0,0,1)) ->  | G47: =(#REF!+#REF!+#REF!+#REF!+#REF!+#REF!+#REF!+#REF!+#REF!+#REF!+#REF!+#REF!+#REF!+G46)/(IF(#REF!=0,0,1)+IF(#REF!=0,0,1)+IF(#REF!=0,0,1)+IF(#REF!=0,0,1)+IF(#REF!=0,0,1)+IF(#REF!=0,0,1)+IF(#REF!=0,0,1)+IF(#REF!=0,0,1)+IF(#REF!=0,0,1)+IF(#REF!=0,0,1)+IF(#REF!=0,0,1)+IF(#REF!=0,0,1)+IF(#REF!=0,0,1)+IF(G46=0,0,1)) ->  | H47: =(#REF!+#REF!+#REF!+#REF!+#REF!+#REF!+#REF!+#REF!+#REF!+#REF!+#REF!+#REF!+#REF!+H46)/(IF(#REF!=0,0,1)+IF(#REF!=0,0,1)+IF(#REF!=0,0,1)+IF(#REF!=0,0,1)+IF(#REF!=0,0,1)+IF(#REF!=0,0,1)+IF(#REF!=0,0,1)+IF(#REF!=0,0,1)+IF(#REF!=0,0,1)+IF(#REF!=0,0,1)+IF(#REF!=0,0,1)+IF(#REF!=0,0,1)+IF(#REF!=0,0,1)+IF(H46=0,0,1)) ->  | I47: =(#REF!+#REF!+#REF!+#REF!+#REF!+#REF!+#REF!+#REF!+#REF!+#REF!+#REF!+#REF!+#REF!+I46)/(IF(#REF!=0,0,1)+IF(#REF!=0,0,1)+IF(#REF!=0,0,1)+IF(#REF!=0,0,1)+IF(#REF!=0,0,1)+IF(#REF!=0,0,1)+IF(#REF!=0,0,1)+IF(#REF!=0,0,1)+IF(#REF!=0,0,1)+IF(#REF!=0,0,1)+IF(#REF!=0,0,1)+IF(#REF!=0,0,1)+IF(#REF!=0,0,1)+IF(I46=0,0,1)) -> 
